[Event "14th BPB Limburg Open 2022"]
[Site "Maastricht"]
[Date "2022.06.04"]
[Round "2.14"]
[White "Dorst, Johannes"]
[Black "Braun, Christian"]
[Result "0-1"]
[ECO "C11"]
[WhiteElo "2227"]
[BlackElo "2426"]
[Annotator "TA"]
[PlyCount "96"]
[EventDate "2022.06.03"]
[EventType "swiss"]
[EventCountry "NED"]
[SourceTitle "playchess.com"]
[Source "ChessBase"]
[SourceQuality "1"]
[TimeControl "7200+15"]

{[%evp 16,96,16,14,10,0,0,0,0,0,0,0,0,-26,27,24,22,-28,-27,-37,-29,-45,-37,-45,-26,-29,-25,-85,-104,-90,-57,-100,-95,-152,-124,-130,-136,-157,-107,-137,-112,-185,-185,-185,-168,-330,-269,-356,-322,-364,-365,-361,-387,-388,-396,-306,-288,-884,-820,-631,-385,-360,-281,-587,-488,-845,-871,-688,-287,-2050,-1874,-1758,-1712,-12837,-12838,-12839,-1575,-29981,-29982,-29982,-29983,-29980,-3515]} 1. e4 {[%emt 0:00:03][%cal Be2e4,Be4e5][%mdl 32]} e6 {[%emt 0:03:09]} 2. d4 {[%emt 0:00:22]} d5 {[%emt 0:00:21]} 3. Nc3 {[%emt 0:00:09]} Nf6 {[%emt 0:00:19]} 4. e5 {[%emt 0:00:06]} Nfd7 {[%emt 0:00:05]} 5. f4 {[%emt 0:00:13]} c5 {[%emt 0:00:05]} 6. Nf3 {[%emt 0:00:18]} Nc6 {[%emt 0:00:06]} 7. Be3 {[%emt 0:00:20]} a6 {[%emt 0:00:05]} 8. Qd2 {[%emt 0:00:51]} Be7 {[%emt 0:00:08]} 9. dxc5 {[%emt 0:01:28]} Nxc5 {[%emt 0:00:29] C11: French: Classical System: 4 e5 and 4 Bg5 dxe4.} 10. O-O-O {[%emt 0:01:08]} Qa5 {[%emt 0:00:06]} 11. Kb1 {[%emt 0:00:29]} b5 {[%emt 0:00:07] The position is equal.} 12. Ne2 {[%emt 0:01:25] [#] Strongly threatening Qxa5.} Qxd2 {[%emt 0:00:07]} 13. Rxd2 {[%emt 0:03:33]} Bd7 {[%emt 0:03:14]} 14. Ned4 {[%emt 0:00:57]} O-O {[%emt 0:05:48] [#]} (14... Ne4 $142) 15. Nxc6 $146 {[%emt 0:05:59]} ({Predecessor:} 15. g4 Ne4 16. Re2 Nxd4 17. Bxd4 b4 18. Re1 Bb5 19. Bg2 Rfc8 20. Be3 a5 21. g5 {1-0 (32) Eliseev,U (2548)-Iskusnyh,S (2482) Khanty-Mansiysk 2015}) 15... Bxc6 {[%emt 0:00:28]} 16. Bd4 {[%emt 0:11:54]} (16. Nd4 $142 Rac8 17. c3) 16... b4 {[%emt 0:07:55]} 17. g3 {[%emt 0:13:43]} a5 {[%emt 1:41:58][%cal Ba6a5,Ba5a4,Ba4a3][%mdl 32]} 18. Bh3 {[%emt 0:08:55]} Ne4 {[%emt 0:00:00]} 19. Rdd1 {[%emt 0:02:18]} Bb5 {[%emt 0:00:00] ...Be2 is the strong threat.} 20. Rhe1 {[%emt 0:00:50] Against Be2} a4 {[%emt 0:00:00]} 21. f5 {[%emt 0:03:35]} (21. Nd2 $11 {remains equal.}) 21... Bd7 $17 {[%emt 0:00:00]} 22. g4 {[%emt 0:10:37][%cal Of5f6]} a3 {[%emt 0:00:00]} 23. b3 {[%emt 0:02:00][%cal Of5f6]} Rfc8 {[%emt 0:00:00] Black is more active.} 24. Rg1 {[%emt 0:11:43]} (24. f6 $142 Bd8 25. g5) 24... Nc3+ {[%emt 0:00:00]} 25. Bxc3 {[%emt 0:00:06]} Rxc3 {[%emt 0:00:00]} 26. Rg3 {[%emt 0:03:41] [#]} Rac8 {[%emt 0:00:00]} ({Better is} 26... Re3 $1 27. Rd3 Re2) 27. Nd4 {[%emt 0:02:16]} Bg5 {[%emt 0:00:00][%cal Be7g5,Bg5f4,Bf4e5][%mdl 32]} 28. Rxc3 {[%emt 0:03:13]} (28. Bf1 $17 {was necessary.}) 28... Rxc3 $19 {[%emt 0:00:00]} 29. Rd3 {[%emt 0:00:10]} Bf4 {[%emt 0:00:00]} 30. Nf3 $2 {[%emt 0:04:49]} (30. Rxc3 {was worth a try.} bxc3 31. fxe6 Bxe6 32. Nxe6 fxe6 33. Bg2) 30... Kf8 {[%emt 0:00:00]} 31. fxe6 {[%emt 0:05:49]} Bxe6 {[%emt 0:00:00] A strong pair of Bishops.} ({Not} 31... fxe6 32. Rxc3 bxc3 33. Bf1 $17) 32. Rxc3 {[%emt 0:11:20]} bxc3 {[%emt 0:00:00]} 33. Nd4 {[%emt 0:00:09]} Bxe5 {[%emt 0:00:00]} 34. Nxe6+ {[%emt 0:00:29]} fxe6 {[%emt 0:00:00][%mdl 4096] Endgame KB-KB} 35. Kc1 {[%emt 0:00:23]} Bxh2 {[%emt 0:00:00]} 36. Bg2 $2 {[%emt 0:00:28]} (36. Kd1) 36... Ke7 {[%emt 0:00:00]} 37. Kd1 {[%emt 0:00:04]} Kd6 {[%emt 0:00:00] aiming for ...e5.} 38. Ke2 {[%emt 0:00:16]} Ke5 {[%emt 0:00:00] Hoping for ...Kf4.} 39. Ke3 {[%emt 0:00:38]} (39. g5 {is tougher.}) 39... Bg1+ {[%emt 0:00:00]} 40. Kf3 {[%emt 0:00:30]} (40. Kd3 $142 Kf4 41. Bh3) 40... Kd4 {[%emt 0:00:00]} 41. Bf1 {[%emt 0:00:22]} e5 {[%emt 0:00:00][%cal Be6e5,Be5e4][%mdl 32] Threatens to win with ...e4+.} 42. Ba6 $2 {[%emt 0:01:37]} (42. Ke2) 42... e4+ {[%emt 0:00:00]} 43. Ke2 {[%emt 0:00:05]} Ke5 {[%emt 0:00:00] White must now prevent ...Bc5.} 44. Bc8 {[%emt 0:00:12]} Bc5 {[%emt 0:00:00] ( -> ...Bb4)} 45. Bd7 {[%emt 0:00:21]} d4 {[%emt 0:00:00]} (45... Bb4 $142 46. Kd1 d4) 46. Bb5 {[%emt 0:03:05]} Bb4 {[%emt 0:00:00] Black mates.} 47. Kd1 {[%emt 0:00:03]} Kf4 {[%emt 0:00:00]} 48. Bd7 {[%emt 0:01:27]} g6 {[%emt 0:00:00] Weighted Error Value: White=0.66/Black=0.19 (very precise)} 0-1

[Event "14th BPB Limburg Open 2022"]
[Site "Maastricht"]
[Date "2022.06.05"]
[Round "3.1"]
[White "Warmerdam, Max"]
[Black "Ernst, Sipke"]
[Result "1/2-1/2"]
[WhiteElo "2614"]
[BlackElo "2547"]
[Annotator "TA"]
[PlyCount "28"]
[EventDate "2022.06.03"]
[EventType "swiss"]
[EventCountry "NED"]
[SourceTitle "playchess.com"]
[Source "ChessBase"]
[SourceQuality "1"]
[TimeControl "7200+15"]

{[%evp 9,15,-10,77,85,87,71,86,83]} 1. c4 {[%emt 0:01:59]} g6 {[%emt 0:01:59]} 2. e4 {[%emt 0:02:12]} Bg7 {[%emt 0:00:22]} 3. d4 {[%emt 0:00:41]} e6 {[%emt 0:03:18]} 4. Nc3 {[%emt 0:00:41]} Ne7 {[%emt 0:00:05]} 5. h4 {[%emt 0:02:52]} h5 {[%emt 0:05:07]} (5... d5 $1 $11 {remains equal.}) 6. Bg5 $16 {[%emt 0:02:16] White is better. A40: Unusual replies to 1 d4.} d6 {[%emt 0:02:51]} 7. Nf3 {[%emt 0:13:50] White is more active.} Nd7 {[%emt 0:02:32]} 8. Be2 {[%emt 0:00:53] [#]} {Predecessor:} b6 $146 9. Qd2 Bb7 10. O-O-O c6 11. Kb1 f6 12. Bf4 e5 13. dxe5 dxe5 14. Be3 Qc7 {1-0 (31) Nyback,T (2586)-Baskin,R Puhajarve 2013} 1/2-1/2

[Event "14th BPB Limburg Open 2022"]
[Site "Maastricht"]
[Date "2022.06.05"]
[Round "3.2"]
[White "Gurevich, Mikhail"]
[Black "Zwirs, Nico"]
[Result "1-0"]
[ECO "D45"]
[WhiteElo "2573"]
[BlackElo "2468"]
[Annotator "TA"]
[PlyCount "43"]
[EventDate "2022.06.03"]
[EventType "swiss"]
[EventCountry "NED"]
[SourceTitle "playchess.com"]
[Source "ChessBase"]
[SourceQuality "1"]
[TimeControl "7200+15"]

{[%evp 15,27,0,0,-1,-10,-12,-14,-16,-7,-15,-8,-28,0,-5]} 1. c4 {[%emt 0:00:11]} e6 {[%emt 0:00:05]} 2. Nf3 {[%emt 0:03:19]} d5 {[%emt 0:00:05]} 3. d4 {[%emt 0:00:02]} Nf6 {[%emt 0:00:08]} 4. Nc3 {[%emt 0:00:05]} c6 {[%emt 0:00:04]} 5. e3 {[%emt 0:00:04]} Nbd7 {[%emt 0:00:05]} 6. Qc2 {[%emt 0:00:11]} Bd6 {[%emt 0:00:11]} 7. b3 {[%emt 0:00:14]} O-O {[%emt 0:00:16]} 8. Be2 {[%emt 0:00:03]} b6 {[%emt 0:00:31]} 9. cxd5 $5 {[%emt 0:02:13][%mdl 4] A promising side line. D45: Semi-Slav: 5 e3.} exd5 {[%emt 0:00:42]} 10. O-O {[%emt 0:00:08]} Re8 {[%emt 0:02:06]} 11. Bb2 {[%emt 0:00:10]} Bb7 {[%emt 0:00:19]} 12. Rac1 {[%emt 0:00:28]} Qe7 {[%emt 0:00:53]} 13. Rfd1 {[%emt 0:01:47]} Rad8 {[%emt 0:03:53]} 14. Bf1 {[%emt 0:06:35][%mdl 32768] [#] A rather calm draw.  Weighted Error Value: White=0.06 (flawless) /Black=0.07 (flawless) . Loss on time!?} {Predecessor:} g6 $146 15. g3 Nh5 16. Bg2 f5 17. Ne2 Nhf6 18. Nf4 Ne4 19. Nd3 c5 20. Nfe5 Nxe5 21. Nxe5 cxd4 22. exd4 {½-½ (57) Maiorov,N (2530)-Galkin,A (2608) Playchess.com INT 2007} 1-0

[Event "14th BPB Limburg Open 2022"]
[Site "Maastricht"]
[Date "2022.06.04"]
[Round "3.3"]
[White "Van Foreest, Lucas"]
[Black "Fischer, Daniel"]
[Result "1-0"]
[ECO "E08"]
[WhiteElo "2572"]
[BlackElo "2367"]
[Annotator "TA"]
[PlyCount "49"]
[EventDate "2022.06.03"]
[EventType "swiss"]
[EventCountry "NED"]
[SourceTitle "playchess.com"]
[Source "ChessBase"]
[SourceQuality "1"]
[TimeControl "7200+15"]

{[%evp 18,33,2,4,24,15,10,11,22,15,27,0,0,0,0,0,13,0]} 1. d4 {[%emt 0:03:20]} Nf6 {[%emt 0:00:08]} 2. c4 {[%emt 0:00:58]} e6 {[%emt 0:00:05]} 3. Nf3 {[%emt 0:00:05]} d5 {[%emt 0:00:19]} 4. g3 {[%emt 0:00:07]} Bb4+ {[%emt 0:00:17]} 5. Bd2 {[%emt 0:00:05]} Be7 {[%emt 0:00:05]} 6. Bg2 {[%emt 0:00:05]} O-O {[%emt 0:00:07]} 7. O-O {[%emt 0:00:05]} c6 {[%emt 0:00:17]} 8. Qc2 {[%emt 0:00:08]} Nbd7 {[%emt 0:00:05] seems to push 8...b6 aside.} 9. Bf4 {[%emt 0:00:04]} b6 {[%emt 0:00:12]} 10. Rd1 {[%emt 0:00:05]} Ba6 {[%emt 0:00:37] E08: Closed Catalan: Main Line: 7 Qc2.} 11. cxd5 {[%emt 1:57:58]} cxd5 {[%emt 0:02:28]} 12. Ne5 {[%emt 0:00:56]} Nxe5 {[%emt 1:58:35]} 13. dxe5 {[%emt 0:00:11]} Ng4 {[%emt 0:00:29] [#] White must now prevent ...Bc5.} 14. Bf3 {[%emt 0:00:51]} (14. h3 $5 {[%cal Rh3g4]} g5 15. hxg4 gxf4 16. gxf4 $14) 14... f5 {[%emt 0:01:04] The position is equal.} 15. exf6 {[%emt 0:00:07]} Nxf6 {[%emt 0:00:09]} 16. Qa4 $1 {[%emt 0:00:17]} Bb7 {[%emt 0:02:26]} 17. Nd2 {[%emt 0:00:05][%mdl 32768] [#] An even fight not without its subleties.  Weighted Error Value: White=0.03 (flawless) /Black=0.04 (flawless) . Loss on time!?} {Predecessor:} Qe8 $146 18. Qxe8 Rfxe8 19. Nc4 Ba6 20. Ne5 Rac8 21. Rdc1 Bd6 22. a3 g5 23. Ng4 Bxf4 24. Rxc8 Rxc8 25. Nxf6+ {½-½ (29) Giri,A (2783)-Ding,L (2813) Wijk aan Zee 2019} 1-0

[Event "14th BPB Limburg Open 2022"]
[Site "Maastricht"]
[Date "2022.06.04"]
[Round "3.4"]
[White "Kopylov, Daniel"]
[Black "Donchenko, Alexander"]
[Result "0-1"]
[ECO "B90"]
[WhiteElo "2292"]
[BlackElo "2599"]
[Annotator "TA"]
[PlyCount "28"]
[EventDate "2022.06.03"]
[EventType "swiss"]
[EventCountry "NED"]
[SourceTitle "playchess.com"]
[Source "ChessBase"]
[SourceQuality "1"]
[TimeControl "7200+15"]

{[%evp 15,28,7,14,8,12,11,24,6,21,14,18,15,24,32,37]} 1. e4 {[%emt 0:00:10]} c5 {[%emt 0:00:21]} 2. Nf3 {[%emt 0:00:17]} d6 {[%emt 0:00:06]} 3. d4 {[%emt 0:00:08]} cxd4 {[%emt 0:00:02]} 4. Nxd4 {[%emt 0:00:06]} Nf6 {[%emt 0:00:05]} 5. Nc3 {[%emt 0:00:04]} a6 {[%emt 0:00:04]} 6. Be3 {[%emt 0:00:16]} e5 {[%emt 0:00:17]} 7. Nf3 {[%emt 0:00:13]} Be7 {[%emt 0:00:05]} 8. Bc4 {[%emt 0:00:09]} Be6 {[%emt 0:00:29]} 9. Bb3 {[%emt 0:01:10] B90: Sicilian Najdorf: Unusual White 6th moves, 6 Be3 Ng4 and 6 Be3 e5.} Nbd7 $1 {[%emt 0:00:19][%mdl 4] is currently scoring better than 9...0-0.} 10. O-O {[%emt 0:04:57]} Rc8 {[%emt 0:00:20] [#]} 11. Ng5 $146 {[%emt 0:06:00]} ({Predecessor:} 11. Nh4 Nc5 12. Bxc5 Rxc5 13. Re1 Qd7 14. g3 O-O 15. Ng2 Bd8 16. Qd3 Ba5 17. Rad1 {0-1 (38) Karjakin,S (2754)-Giri,A (2776) Bucharest 2019}) 11... Bc4 {[%emt 0:05:27]} 12. Bxc4 {[%emt 0:10:03]} Rxc4 {[%emt 0:00:03]} 13. Qd3 {[%emt 0:00:26]} Qc7 {[%emt 0:03:25]} 14. Nf3 {[%emt 0:01:18]} O-O {[%emt 0:02:29][%mdl 32768] Weighted Error Value: White=0.03 (flawless) /Black=0.04 (flawless) . Sensor Board Error (Ke4/e5)?} 0-1

[Event "14th BPB Limburg Open 2022"]
[Site "Maastricht"]
[Date "2022.06.04"]
[Round "3.5"]
[White "Muetsch, Annmarie"]
[Black "Dardha, Daniel"]
[Result "0-1"]
[WhiteElo "2275"]
[BlackElo "2561"]
[Annotator "TA"]
[PlyCount "32"]
[EventDate "2022.06.03"]
[EventType "swiss"]
[EventCountry "NED"]
[SourceTitle "playchess.com"]
[Source "ChessBase"]
[SourceQuality "1"]
[TimeControl "7200+15"]

{[%evp 9,18,0,0,0,6,0,0,0,9,-8,0]} 1. e4 {[%emt 0:00:04]} c5 {[%emt 0:03:10]} 2. Nc3 {[%emt 0:00:38]} d6 {[%emt 0:00:56]} 3. d4 {[%emt 0:00:14]} cxd4 {[%emt 0:00:15]} 4. Qxd4 {[%emt 0:00:07]} Nf6 {[%emt 0:03:21]} 5. b3 {[%emt 0:00:37]} Nc6 {[%emt 0:04:34] The position is equal.} 6. Qd2 {[%emt 0:00:11] B23: Closed Sicilian: Lines without g3.} e6 {[%emt 0:00:35]} 7. Bb2 {[%emt 0:02:00]} Be7 {[%emt 0:01:43] 7...d5 injects fresh life into this line.} 8. O-O-O {[%emt 0:05:00]} O-O {[%emt 0:01:56]} 9. Kb1 {[%emt 0:05:43]} a6 {[%emt 0:02:58][%mdl 32768] [#] A rather calm draw.  Weighted Error Value: White=0.03 (flawless) /Black=0.02 (flawless) . Loss on time!?} {Predecessor:} 10. g4 $146 d5 11. exd5 exd5 12. g5 Ne4 13. Nxe4 dxe4 14. Qe1 Bb4 15. Rxd8 Bxe1 16. Rxf8+ Kxf8 {½-½ (29) Andreikin,D (2702)-Zhao,J (2601) China 2018} 0-1

[Event "14th BPB Limburg Open 2022"]
[Site "Maastricht"]
[Date "2022.06.04"]
[Round "3.6"]
[White "Sankalp Gupta"]
[Black "Van Roon, Sjoerd"]
[Result "1/2-1/2"]
[ECO "D00"]
[WhiteElo "2505"]
[BlackElo "2264"]
[Annotator "TA"]
[PlyCount "25"]
[EventDate "2022.06.03"]
[EventType "swiss"]
[EventCountry "NED"]
[SourceTitle "playchess.com"]
[Source "ChessBase"]
[SourceQuality "1"]
[TimeControl "7200+15"]

{[%evp 9,25,-7,-3,-12,25,5,40,39,42,-11,86,80,82,106,129,44,50,0]} 1. d4 {[%emt 2:00:30]} d5 {[%emt 2:00:30]} 2. Nc3 {[%emt 0:00:24]} Nf6 {[%emt 0:00:32]} 3. Bf4 {[%emt 0:00:11]} e6 {[%emt 0:00:34]} 4. Nb5 {[%emt 0:01:06]} Na6 {[%emt 0:01:29]} 5. e3 {[%emt 0:00:02]} c6 {[%emt 0:03:09]} 6. Nc3 {[%emt 0:00:03] D00: 1 d4 d5: Unusual lines.} Nc7 {[%emt 0:00:25]} 7. Nf3 {[%emt 0:00:37]} b6 {[%emt 0:01:28]} 8. Ne5 {[%emt 0:05:23]} Bb7 {[%emt 0:00:11]} 9. Qf3 {[%emt 0:02:18]} ({White should try} 9. Bd3 $14) 9... Be7 {[%emt 1:52:49] [#]} (9... Bb4 $11) 10. g4 $146 {[%emt 0:00:52][%cal Bg2g4,Bg4g5][%mdl 32] g5 is the strong threat.} ({Predecessor:} 10. O-O-O O-O 11. g4 c5 12. Qg3 Rc8 13. f3 cxd4 14. exd4 b5 15. h4 b4 16. Ne2 {1-0 (28) Gelman,A (2403)-Lopez Gonzalez,D (2193) Chess.com INT 2021}) 10... O-O {[%emt 1:52:15]} 11. g5 {[%emt 0:05:20]} Nd7 {[%emt 0:04:19] [#]} 12. Nxd7 {[%emt 0:01:23] 0x0.001e61690920dp-1022s more active pieces.} (12. Bd3 $1 $16) 12... Qxd7 $14 {[%emt 0:00:05]} 13. h4 {[%emt 0:00:06] Weighted Error Value: White=0.27 (precise) /Black=0.36} (13. O-O-O $14) 1/2-1/2

[Event "14th BPB Limburg Open 2022"]
[Site "Maastricht"]
[Date "2022.06.04"]
[Round "3.7"]
[White "Braun, Christian"]
[Black "Rebers, Eugene"]
[Result "1/2-1/2"]
[ECO "A05"]
[WhiteElo "2426"]
[BlackElo "2194"]
[Annotator "TA"]
[PlyCount "23"]
[EventDate "2022.06.03"]
[EventType "swiss"]
[EventCountry "NED"]
[SourceTitle "playchess.com"]
[Source "ChessBase"]
[SourceQuality "1"]
[TimeControl "7200+15"]

{[%evp 12,23,12,0,16,10,37,27,31,0,16,9,23,9]} 1. e4 {[%emt 2:00:30]} c5 {[%emt 0:01:34]} 2. Nf3 {[%emt 0:00:11]} g6 {[%emt 0:00:07]} 3. d3 {[%emt 0:00:05]} Bg7 {[%emt 1:59:19]} 4. g3 {[%emt 0:00:05]} Nc6 {[%emt 0:01:49]} 5. Bg2 {[%emt 0:00:09]} d6 {[%emt 0:01:37]} 6. O-O {[%emt 0:00:08]} Nf6 {[%emt 1:56:27]} 7. Re1 $1 {[%emt 0:00:24][%mdl 4] now scores much better than the old 7.c3.} Bg4 {[%emt 0:04:26] A05: Réti Opening: 1 Nf3 Nf6.} 8. h3 {[%emt 0:00:57]} Bxf3 {[%emt 0:00:08]} 9. Bxf3 {[%emt 0:00:06]} Nd7 {[%emt 0:03:23]} 10. Nd2 {[%emt 0:01:53]} O-O {[%emt 0:00:29]} 11. Bg2 {[%emt 0:05:51] [#]} Rc8 $146 {[%emt 0:06:20]} ({Predecessor:} 11... Rb8 12. a4 a6 {½-½ (12) Bajarani,I (2311)-Vorontsov,P (2389) Kiev 2015}) 12. h4 {[%emt 0:02:06] Black got outplayed after the opening.  Weighted Error Value: White=0.10 (very precise) /Black=0.15 (very precise)} 1/2-1/2

[Event "14th BPB Limburg Open 2022"]
[Site "Maastricht"]
[Date "2022.06.04"]
[Round "3.8"]
[White "Jansen, Bob"]
[Black "Lahaye, Rick"]
[Result "0-1"]
[WhiteElo "2174"]
[BlackElo "2410"]
[Annotator "TA"]
[PlyCount "28"]
[EventDate "2022.06.03"]
[EventType "swiss"]
[EventCountry "NED"]
[SourceTitle "playchess.com"]
[Source "ChessBase"]
[SourceQuality "1"]
[TimeControl "7200+15"]

{[%evp 9,13,-11,6,-2,0,10]} 1. d4 {[%emt 0:02:00]} d5 {[%emt 0:00:08]} 2. Nc3 {[%emt 0:00:06]} Nf6 {[%emt 0:03:14]} 3. Bf4 {[%emt 0:00:19]} e6 {[%emt 0:04:13]} 4. Nb5 {[%emt 0:03:14]} Na6 {[%emt 0:04:07]} 5. e3 {[%emt 1:55:51]} Bb4+ {[%emt 0:09:16]} 6. c3 {[%emt 0:08:46] D00: 1 d4 d5: Unusual lines.} Be7 {[%emt 0:00:24]} 7. Nf3 {[%emt 0:06:40][%mdl 32768] [#] A rather calm draw. Loss on time!?} {Predecessor:} Nh5 $146 8. Ne5 Nxf4 9. exf4 c6 10. Na3 Bxa3 11. bxa3 Qa5 12. Qb3 O-O 13. Bd3 c5 14. Bxa6 bxa6 {0-1 (38) Gelman,A (2403)-Harutjunyan,G (2442) Chess.com INT 2021} 0-1

[Event "14th BPB Limburg Open 2022"]
[Site "Maastricht"]
[Date "2022.06.04"]
[Round "3.9"]
[White "Roebers, Eline"]
[Black "Tabak, Stefan"]
[Result "1-0"]
[ECO "B32"]
[WhiteElo "2369"]
[BlackElo "2160"]
[Annotator "TA"]
[PlyCount "28"]
[EventDate "2022.06.03"]
[EventType "swiss"]
[EventCountry "NED"]
[SourceTitle "playchess.com"]
[Source "ChessBase"]
[SourceQuality "1"]
[TimeControl "7200+15"]

{[%evp 14,28,27,33,37,20,14,0,39,37,56,60,57,68,78,68,155]} 1. e4 {[%emt 0:00:03]} c5 {[%emt 0:06:17]} 2. Nf3 {[%emt 0:00:03][%cal Bg1f3,Bf3d4,Bd4b5,Bb5a3,Ba3c4][%mdl 32]} Nc6 {[%emt 0:00:04]} 3. d4 {[%emt 0:00:03]} cxd4 {[%emt 0:00:05]} 4. Nxd4 {[%emt 0:00:03]} e5 {[%emt 0:00:05]} 5. Nb5 {[%emt 0:00:02]} d6 {[%emt 0:00:06]} 6. N1c3 {[%emt 0:00:02]} a6 {[%emt 0:00:23]} 7. Na3 {[%emt 0:00:04]} Be6 {[%emt 0:00:28]} 8. Nc4 {[%emt 0:00:19]} Rb8 {[%emt 0:00:06] B32: Sicilian: Löwenthal and Kalashnikov Variations.} 9. a4 {[%emt 0:00:03]} Nb4 {[%emt 0:00:13] 9...Nf6 is the fancy move.} 10. Nd5 {[%emt 0:00:03]} Nxd5 {[%emt 0:00:29] The position is equal.} (10... Bxd5 $5 11. exd5 Nf6 $14) 11. exd5 {[%emt 0:00:05] [#]} Bd7 $146 {[%emt 0:02:36]} ({Predecessor:} 11... Bf5 12. Be3 Nf6 13. Be2 g6 14. O-O Bg7 15. Nb6 Nd7 16. a5 Nxb6 17. axb6 O-O {1-0 (42) Sohier,J (2253)-Arnold,K (1804) Paleochora 2020}) 12. Be3 {[%emt 0:06:21]} b5 {[%emt 0:11:59]} 13. axb5 {[%emt 0:01:08]} axb5 {[%emt 0:00:04] [#]} 14. Na5 {[%emt 0:05:55] Threatens to win with Nc6. White is much more active.} Nf6 {[%emt 0:04:55] Weighted Error Value: White=0.05 (flawless) /Black=0.11 (very precise)} (14... Ne7 $14) 1-0

[Event "14th BPB Limburg Open 2022"]
[Site "Maastricht"]
[Date "2022.06.04"]
[Round "3.10"]
[White "Bruil, Rembrandt"]
[Black "De Rover, Yong Hoon"]
[Result "1/2-1/2"]
[ECO "E12"]
[WhiteElo "2122"]
[BlackElo "2365"]
[Annotator "TA"]
[PlyCount "24"]
[EventDate "2022.06.03"]
[EventType "swiss"]
[EventCountry "NED"]
[SourceTitle "playchess.com"]
[Source "ChessBase"]
[SourceQuality "1"]
[TimeControl "7200+15"]

{[%evp 13,24,0,1,0,0,-33,-13,-22,-22,-20,-20,-35,-27]} 1. d4 {[%emt 0:00:03]} Nf6 {[%emt 0:01:27]} 2. c4 {[%emt 0:00:06]} e6 {[%emt 0:00:33]} 3. Nf3 {[%emt 0:00:12]} b6 {[%emt 0:00:32]} 4. a3 {[%emt 0:00:05]} Bb7 {[%emt 0:00:31]} 5. Nc3 {[%emt 0:00:06]} d5 {[%emt 1:58:27]} 6. Bg5 {[%emt 0:00:04]} Be7 {[%emt 0:01:30]} 7. Qa4+ {[%emt 0:00:23]} Qd7 {[%emt 0:02:02]} (7... c6 {is more complex.} 8. e3 O-O 9. cxd5 Nxd5 10. Nxd5 exd5 11. Bxe7 Qxe7 12. Be2 Nd7) 8. Qxd7+ {[%emt 0:06:38] E12: Queen's Indian: Unusual White 4th moves, 4 a3, 4 Nc3 Bb7 5 a3 and 4 Nc3 Bb7 .} (8. Qc2 {feels hotter.} O-O 9. e3 c5 10. dxc5 bxc5 11. cxd5 exd5 12. Bd3) 8... Nbxd7 {[%emt 0:00:37]} 9. e3 {[%emt 0:01:39]} a6 {[%emt 1:54:43]} 10. cxd5 {[%emt 0:04:20]} Nxd5 {[%emt 0:00:55]} 11. Nxd5 {[%emt 0:14:50]} Bxd5 {[%emt 0:00:52] [#]} 12. Bxe7 $146 {[%emt 0:00:12]} ({Predecessor:} 12. Bf4 c5 13. Be2 cxd4 14. exd4 O-O 15. Rc1 Rfc8 16. O-O b5 17. Ne5 Nb6 18. Nd3 {½-½ (61) Rustemov,A (2539)-Kramnik,V (2751) ICC INT 1999}) 12... Kxe7 {[%emt 0:00:37] White got outplayed after the opening.  Weighted Error Value: White=0.12 (very precise) /Black=0.09 (flawless)} 1/2-1/2

[Event "14th BPB Limburg Open 2022"]
[Site "Maastricht"]
[Date "2022.06.04"]
[Round "3.11"]
[White "Nemegeer, Arne"]
[Black "Lenaerts, Lennert"]
[Result "0-1"]
[ECO "C00"]
[WhiteElo "2149"]
[BlackElo "2362"]
[Annotator "TA"]
[PlyCount "24"]
[EventDate "2022.06.03"]
[EventType "swiss"]
[EventCountry "NED"]
[SourceTitle "playchess.com"]
[Source "ChessBase"]
[SourceQuality "1"]
[TimeControl "7200+15"]

{[%evp 15,24,0,0,0,12,-1,33,0,14,-6,4]} 1. e4 {[%emt 0:00:03]} c5 {[%emt 2:00:30]} 2. Nf3 {[%emt 0:00:02]} e6 {[%emt 0:00:04]} 3. g3 {[%emt 0:00:05]} Nc6 {[%emt 0:00:30]} 4. Bg2 {[%emt 2:01:05]} Nf6 {[%emt 0:00:43]} 5. Qe2 {[%emt 0:00:05]} e5 {[%emt 0:02:59]} 6. O-O {[%emt 0:00:09]} d6 {[%emt 0:01:58]} 7. c3 {[%emt 0:01:25]} Be7 {[%emt 0:00:36]} 8. d3 {[%emt 0:00:11]} O-O {[%emt 0:00:26]} 9. Na3 {[%emt 0:01:23][%cal Bb1a3,Ba3c4,Bc4e3][%mdl 32] C00: French: Unusual White 2nd moves.} Re8 {[%emt 0:00:32]} 10. Nc4 {[%emt 0:02:03]} Bf8 {[%emt 0:00:16]} 11. Ne3 {[%emt 0:06:07]} g6 {[%emt 0:07:43] [#]} 12. Ne1 $146 {[%emt 0:08:59]} ({Predecessor:} 12. a3 Bg7 13. b4 h6 14. Rb1 Rb8 15. Bb2 b5 16. Rfd1 Bb7 17. a4 bxa4 18. bxc5 dxc5 {½-½ (26) Gagare,S (2481)-Kryakvin,D (2592) Caleta 2020}) 12... Bg7 {[%emt 0:02:46][%mdl 32768] A rather calm draw.  Weighted Error Value: White=0.17 (very precise) /Black=0.10 (very precise) . Loss on time!?} 0-1